fUST/lending_fUST_20260323
["ID","MTS","AMOUNT","RATE_DAILY","PERIOD"]
[408791599,1774277440406,-2550.67868723,0.000187,2]
[408791600,1774277440461,-557.06891225,0.000187,2]
[408791601,1774277440474,-1177.93474205,0.000187,2]
[408791602,1774277440487,-808.4544273,0.000187,2]
[408791606,1774277444824,-16.9968271,0.00018513,2]
[408791607,1774277444836,-1357.39668019,0.00018513,2]
[408791608,1774277444849,-3625.60649271,0.00018513,2]
[408791609,1774277444859,-4382.80457095,0.000187,2]
[408791610,1774277444914,-7807.39126634,0.000187,2]
[408791612,1774277446375,-1578828.06966332,0.000187,2]
[408791613,1774277446385,-151.0,0.000187,2]
[408791614,1774277446394,-151.0,0.000187,2]
[408791615,1774277446404,-151.0,0.000187,2]
[408791616,1774277446414,-151.0,0.000187,2]
[408791617,1774277446427,-151.0,0.000187,2]
[408791618,1774277446436,-151.0,0.000187,2]
[408791619,1774277446445,-151.0,0.000187,2]
[408791620,1774277446455,-151.0,0.000187,2]
[408791621,1774277446465,-151.0,0.000187,2]
[408791622,1774277446475,-151.0,0.000187,2]
[408791623,1774277446484,-500.0,0.00018798,2]
[408791624,1774277446494,-500.0,0.00018799,2]
[408791625,1774277446506,-500.0,0.00018799,2]
[408791626,1774277446522,-500.0,0.00018799,2]
[408791627,1774277446532,-500.0,0.00018799,2]
[408791628,1774277446541,-253.26,0.00018799,2]
[408791629,1774277446552,-404.14468725,0.000188,17]
[408791630,1774277446561,-151.0,0.000188,2]
[408791631,1774277446571,-151.0,0.000189,2]
[408791632,1774277446581,-151.0,0.00019,2]
[408791633,1774277446591,-498.45220221,0.00019178,2]
[408791634,1774277446601,-500.0,0.00019178,2]
[408791635,1774277446610,-151.0,0.000192,2]
[408791636,1774277446620,-151.0,0.000193,2]
[408791637,1774277446630,-151.0,0.000194,2]
[408791638,1774277446639,-151.0,0.000195,2]
[408791639,1774277446649,-151.0,0.000196,2]
[408791640,1774277446659,-896.060829,0.00019707,2]
[408791641,1774277446669,-2000.0,0.00019717,7]
[408791642,1774277446679,-151.0,0.000198,2]
[408791643,1774277446688,-151.0,0.000199,2]
[408791644,1774277446698,-500.0,0.00019973,2]
[408791645,1774277446708,-500.0,0.00019973,2]
[408791646,1774277446717,-200.0,0.00019999,2]
[408791647,1774277446727,-223.91,0.00019999,2]
[408791648,1774277446737,-512.6834,0.00019999,2]
[408791649,1774277446746,-512.6834,0.00019999,2]
[408791650,1774277446757,-200.0,0.00019999,2]
[408791651,1774277446767,-512.6834,0.00019999,2]
[408791652,1774277446777,-512.6834,0.00019999,2]
[408791653,1774277446788,-512.6834,0.00019999,2]
[408791654,1774277446798,-199.99,0.00019999,2]
[408791655,1774277446808,-1137575.46417869,0.0002,2]
[408791656,1774277446819,-274.73544027,0.0002,120]
[408791657,1774277446828,-709.89068,0.0002,2]
[408791658,1774277446838,-180.07917065,0.0002,2]
[408791659,1774277446848,-1010.24045878,0.0002,30]
[408791660,1774277446858,-197.17,0.000201,2]
[408791661,1774277446868,-34121.6444247,0.000202,5]
[408791662,1774277446877,-600.0,0.00020399,2]
[408791663,1774277446887,-1000.0,0.00020521,2]
[408791664,1774277446896,-650.22019647,0.00020521,2]
[408791665,1774277446906,-512.6834,0.00020547,3]
[408791666,1774277446915,-512.6834,0.00020547,3]
[408791667,1774277446925,-512.6834,0.00020547,3]
[408791668,1774277446935,-325.3666,0.00020547,3]
[408791669,1774277446944,-512.6834,0.00020547,3]
[408791670,1774277446954,-512.6834,0.00020547,3]
[408791671,1774277446964,-327.44,0.00021,2]
[408791672,1774277446974,-1500.0,0.00021068,2]
[408791673,1774277446984,-512.6834,0.00021095,4]
[408791674,1774277446993,-512.6832,0.00021095,4]
[408791675,1774277447004,-512.6834,0.00021095,4]
[408791676,1774277447014,-512.6832,0.00021095,4]
[408791677,1774277447023,-512.6834,0.00021095,4]
[408791678,1774277447033,-2150.738,0.00021233,2]
[408791679,1774277447043,-634.46299347,0.00021233,2]
[408791680,1774277447052,-217.99836267,0.00021616,2]
[408791681,1774277447061,-305.4074276,0.00021741,2]
[408791682,1774277447071,-151.036831,0.00021741,2]
[408791683,1774277447081,-2230.315306,0.00021781,2]
[408791684,1774277447091,-196.1116687,0.00021831,2]
[408791685,1774277447101,-500.11735378,0.00021917,2]
[408791686,1774277447110,-1000.0,0.00021917,2]
[408791687,1774277447122,-500.0,0.00021917,4]
[408791688,1774277447131,-709.25,0.00021917,4]
[408791689,1774277447141,-334.36921802,0.00021917,2]
[408791690,1774277447152,-500.0,0.00021917,4]
[408791691,1774277447162,-587.94199552,0.00021917,2]
[408791692,1774277447172,-500.0,0.00021917,2]
[408791693,1774277447181,-500.0,0.00021917,4]
[408791694,1774277447191,-500.0,0.00021917,2]
[408791695,1774277447200,-500.0,0.00021917,4]
[408791696,1774277447211,-1000.0,0.00021917,2]
[408791697,1774277447222,-198.0,0.00021917,2]
[408791698,1774277447231,-500.0,0.00021917,4]
[408791699,1774277447241,-184.0,0.00022,2]
[408791700,1774277447253,-1000.0,0.00022191,2]
[408791701,1774277447263,-500.0,0.00022191,4]
[408791702,1774277447273,-709.25,0.00022191,4]
[408791703,1774277447283,-500.0,0.00022191,4]
[408791704,1774277447292,-500.0,0.00022191,2]
[408791705,1774277447302,-500.0,0.00022191,4]
[408791706,1774277447311,-500.0,0.00022191,2]
[408791707,1774277447321,-491.54402642,0.00022191,4]
[408791708,1774277447331,-1000.0,0.00022191,2]
[408791709,1774277447340,-2312.83697232,0.00022329,2]
[408791710,1774277447350,-324.7426577,0.00022402,2]
[408791711,1774277447360,-720.0,0.00022439,10]
[408791712,1774277447369,-1000.0,0.00022465,2]
[408791713,1774277447379,-500.0,0.00022465,4]
[408791714,1774277447389,-709.25,0.00022465,4]
[408791715,1774277447398,-500.0,0.00022465,4]
[408791716,1774277447408,-500.0,0.00022465,2]
[408791717,1774277447417,-500.0,0.00022465,4]
[408791718,1774277447428,-500.0,0.00022465,2]
[408791719,1774277447672,-1000.0,0.00022465,2]
[408791720,1774277447728,-196.1382073,0.00022652,2]
[408791721,1774277447739,-1000.0,0.00022739,2]
[408791722,1774277447751,-500.0,0.00022739,4]
[408791723,1774277447760,-151.0,0.00022739,2]
[408791724,1774277447770,-709.25,0.00022739,4]
[408791725,1774277447780,-500.0,0.00022739,4]
[408791726,1774277447790,-500.0,0.00022739,2]
[408791727,1774277447799,-500.0,0.00022739,4]
[408791728,1774277447809,-500.0,0.00022739,2]
[408791729,1774277447819,-1000.0,0.00022739,2]
[408791730,1774277447829,-2398.4119403,0.00022877,2]
[408791731,1774277447838,-552.39927235,0.00022896,2]
[408791732,1774277447853,-208.0,0.00023,2]
[408791733,1774277447864,-270.83333333,0.00023,2]
[408791734,1774277447874,-184.0,0.00023,2]
[408791735,1774277447884,-201.50183,0.00023013,2]
[408791736,1774277447895,-201.50183,0.00023013,2]
[408791737,1774277447905,-201.50183,0.00023013,2]
[408791738,1774277447915,-201.50183,0.00023013,2]
[408791739,1774277447926,-611.693164,0.00023013,2]
[408791740,1774277447937,-611.693164,0.00023013,2]
[408791741,1774277447947,-611.693164,0.00023013,2]
[408791742,1774277447957,-611.693164,0.00023013,2]
[408791743,1774277447967,-176.793951,0.00023013,2]
[408791744,1774277447977,-172.537477,0.00023013,2]
[408791745,1774277447987,-172.537477,0.00023013,2]
[408791746,1774277447998,-334.411454,0.00023013,2]
[408791747,1774277448009,-194.538464,0.00023013,2]
[408791748,1774277448021,-334.411454,0.00023013,2]
[408791749,1774277448031,-172.537477,0.00023013,2]
[408791750,1774277448041,-194.538464,0.00023013,2]
[408791751,1774277448051,-1000.0,0.00023013,2]
[408791752,1774277448061,-334.411454,0.00023013,2]
[408791753,1774277448071,-172.537477,0.00023013,2]
[408791754,1774277448080,-194.538464,0.00023013,2]
[408791755,1774277448090,-334.411454,0.00023013,2]
[408791756,1774277448100,-194.538464,0.00023013,2]
[408791757,1774277448110,-151.0,0.00023013,2]
[408791758,1774277448121,-500.0,0.00023013,4]
[408791759,1774277448131,-151.0,0.00023013,2]
[408791760,1774277448142,-151.0,0.00023013,2]
[408791761,1774277448152,-709.25,0.00023013,4]
[408791762,1774277448162,-500.0,0.00023013,4]
[408791763,1774277448172,-960.021643,0.00023013,2]
[408791764,1774277448182,-960.021643,0.00023013,2]
[408791765,1774277448193,-960.021643,0.00023013,2]
[408791766,1774277448202,-960.021643,0.00023013,2]
[408791767,1774277448212,-196.548611,0.00023013,2]
[408791768,1774277448221,-196.548611,0.00023013,2]
[408791769,1774277448231,-196.548611,0.00023013,2]
[408791770,1774277448242,-196.548611,0.00023013,2]
[408791771,1774277448252,-151.0,0.00023013,2]
[408791772,1774277448262,-151.0,0.00023013,2]
[408791773,1774277448271,-151.0,0.00023013,2]
[408791774,1774277448282,-204.684368,0.00023013,2]
[408791775,1774277448291,-151.0,0.00023013,2]
[408791776,1774277448301,-151.0,0.00023013,2]
[408791777,1774277448310,-151.0,0.00023013,2]
[408791778,1774277448320,-367.505149,0.00023013,2]
[408791779,1774277448330,-367.505149,0.00023013,2]
[408791780,1774277448340,-367.505149,0.00023013,2]
[408791783,1774277448350,-367.505149,0.00023013,2]
[408791785,1774277448363,-498.1826,0.00023013,2]
[408791787,1774277448373,-498.1826,0.00023013,2]
[408791789,1774277448383,-498.1826,0.00023013,2]
[408791791,1774277448392,-498.1826,0.00023013,2]
[408791793,1774277448401,-151.0,0.00023013,2]
[408791795,1774277448411,-2856.208797,0.00023013,2]
[408791796,1774277448420,-151.0,0.00023013,2]
[408791797,1774277448429,-2856.208797,0.00023013,2]
[408791798,1774277448439,-2856.208797,0.00023013,2]
[408791799,1774277448450,-151.0,0.00023013,2]
[408791800,1774277448460,-2856.208797,0.00023013,2]
[408791801,1774277448470,-966.324788,0.00023013,2]
[408791802,1774277448480,-966.324788,0.00023013,2]
[408791803,1774277448490,-966.324788,0.00023013,2]
[408791804,1774277448502,-151.0,0.00023013,2]
[408791805,1774277448514,-966.324788,0.00023013,2]
[408791806,1774277448524,-151.0,0.00023013,2]
[408791807,1774277448534,-422.92080083,0.00023013,2]
[408791808,1774277448545,-400.0,0.00023013,4]
[408791809,1774277448555,-500.0,0.00023013,2]
[408791810,1774277448565,-1000.0,0.00023013,2]
[408791811,1774277448575,-2000.0,0.00023145,7]
[408791812,1774277448587,-500.0,0.00023243,2]
[408791813,1774277448597,-500.0,0.00023243,2]
[408791814,1774277448607,-500.0,0.00023243,2]
[408791815,1774277448616,-500.0,0.00023243,2]
[408791816,1774277448626,-500.0,0.00023243,2]
[408791817,1774277448636,-500.0,0.00023243,2]
[408791818,1774277448646,-196.145294,0.00023243,2]
[408791819,1774277448656,-3400.82196705,0.00023263,2]
[408791820,1774277448666,-500.0,0.00023281,2]
[408791821,1774277448676,-1000.0,0.00023287,2]
[408791822,1774277448688,-500.0,0.00023287,4]
[408791823,1774277448698,-709.25,0.00023287,4]
[408791824,1774277448707,-500.0,0.00023287,4]
[408791825,1774277448718,-468.66697241,0.00023287,2]
[408791826,1774277448728,-1000.0,0.00023287,2]
[408791827,1774277448738,-300.0,0.00023304,2]
[408791828,1774277448747,-500.0,0.00023304,2]
[408791829,1774277448758,-500.0,0.00023304,2]
[408791830,1774277448768,-151.0,0.00023362,2]
[408791831,1774277448779,-194.330576,0.00023362,2]
[408791832,1774277448789,-194.330576,0.00023362,2]
[408791833,1774277448799,-194.330576,0.00023362,2]
[408791834,1774277448809,-194.330576,0.00023362,2]
[408791835,1774277448820,-151.0,0.00023362,2]
[408791836,1774277448830,-151.0,0.00023362,2]
[408791837,1774277448840,-184.944862,0.00023362,2]
[408791839,1774277448850,-184.944862,0.00023362,2]
[408791841,1774277448860,-184.944862,0.00023362,2]
[408791843,1774277448871,-184.944862,0.00023362,2]
[408791845,1774277448881,-707958.3329938,0.00023363,2]
[408791847,1774277448891,-2677.776263,0.00023363,2]
[408791849,1774277448902,-2677.776263,0.00023363,2]
[408791851,1774277448911,-151.0,0.00023363,2]
[408791853,1774277448921,-2677.776263,0.00023363,2]
[408791855,1774277448931,-2677.776263,0.00023363,2]
[408791857,1774277448941,-181.879932,0.00023363,2]
[408791859,1774277448951,-194.330576,0.00023363,2]
[408791861,1774277448961,-194.330576,0.00023363,2]
[408791863,1774277448970,-194.330576,0.00023363,2]
[408791865,1774277448981,-194.330576,0.00023363,2]
[408791867,1774277448990,-151.0,0.00023363,2]
[408791869,1774277449000,-151.0,0.00023363,2]
[408791871,1774277449011,-184.944862,0.00023363,2]
[408791873,1774277449021,-184.944862,0.00023363,2]
[408791875,1774277449031,-184.944862,0.00023363,2]
[408791877,1774277449041,-184.944862,0.00023363,2]
[408791879,1774277449051,-201.50183,0.00023363,2]
[408791881,1774277449062,-201.50183,0.00023363,2]
[408791883,1774277449072,-201.50183,0.00023363,2]
[408791885,1774277449082,-201.50183,0.00023363,2]
[408791887,1774277449092,-611.693164,0.00023363,2]
[408791889,1774277449102,-611.693164,0.00023363,2]
[408791891,1774277449113,-611.693164,0.00023363,2]
[408791893,1774277449123,-611.693164,0.00023363,2]
[408791895,1774277449134,-172.537477,0.00023363,2]
[408791897,1774277449145,-172.537477,0.00023363,2]
[408791899,1774277449156,-334.411454,0.00023363,2]
[408791901,1774277449166,-194.538464,0.00023363,2]
[408791903,1774277449176,-334.411454,0.00023363,2]
[408791905,1774277449186,-172.537477,0.00023363,2]
[408791907,1774277449195,-194.538464,0.00023363,2]
[408791909,1774277449205,-334.411454,0.00023363,2]
[408791911,1774277449215,-172.537477,0.00023363,2]
[408791913,1774277449224,-194.538464,0.00023363,2]
[408791915,1774277449234,-334.411454,0.00023363,2]
[408791917,1774277449244,-194.538464,0.00023363,2]
[408791919,1774277449254,-151.0,0.00023363,2]
[408791921,1774277449264,-151.0,0.00023363,2]
[408791923,1774277449274,-151.07683,0.00023363,2]
[408791925,1774277449284,-151.0,0.00023363,2]
[408791927,1774277449294,-960.021643,0.00023363,2]
[408791929,1774277449303,-960.021643,0.00023363,2]
[408791931,1774277449313,-960.021643,0.00023363,2]
[408791933,1774277449323,-960.021643,0.00023363,2]
[408791935,1774277449333,-196.548611,0.00023363,2]
[408791937,1774277449342,-196.548611,0.00023363,2]
[408791939,1774277449352,-196.548611,0.00023363,2]
[408791941,1774277449361,-196.548611,0.00023363,2]
[408791943,1774277449371,-151.0,0.00023363,2]
[408791945,1774277449380,-151.0,0.00023363,2]
[408791947,1774277449390,-151.0,0.00023363,2]
[408791949,1774277449400,-151.0,0.00023363,2]
[408791951,1774277449410,-151.0,0.00023363,2]
[408791953,1774277449419,-151.0,0.00023363,2]
[408791955,1774277449429,-367.505149,0.00023363,2]
[408791957,1774277449439,-367.505149,0.00023363,2]
[408791959,1774277449448,-367.505149,0.00023363,2]
[408791961,1774277449458,-367.505149,0.00023363,2]
[408791963,1774277449468,-498.1826,0.00023363,2]
[408791965,1774277449477,-498.1826,0.00023363,2]
[408791967,1774277449487,-498.1826,0.00023363,2]
[408791969,1774277449496,-498.1826,0.00023363,2]
[408791971,1774277449509,-151.0,0.00023363,2]
[408791973,1774277449521,-2856.208797,0.00023363,2]
[408791975,1774277449531,-151.0,0.00023363,2]
[408791977,1774277449540,-2856.208797,0.00023363,2]
[408791979,1774277449551,-2856.208797,0.00023363,2]
[408791981,1774277449561,-161.370042,0.00023363,2]
[408791983,1774277449570,-2856.208797,0.00023363,2]
[408791985,1774277449580,-966.324788,0.00023363,2]
[408791987,1774277449592,-966.324788,0.00023363,2]
[408791989,1774277449601,-966.324788,0.00023363,2]
[408791991,1774277449611,-151.0,0.00023363,2]
[408791993,1774277449620,-966.324788,0.00023363,2]
[408791995,1774277449630,-500.0,0.00023363,9]
[408791997,1774277449640,-500.0,0.00023373,2]
[408791999,1774277449650,-500.0,0.00023373,2]
[408792001,1774277449659,-500.0,0.00023373,2]
[408792003,1774277449669,-250.0,0.000234,2]
[408792005,1774277449679,-250.0,0.000234,2]
[408792007,1774277449688,-250.0,0.000234,2]
[408792009,1774277449698,-250.0,0.000234,2]
[408792011,1774277449707,-250.0,0.000234,2]
[408792013,1774277449717,-250.0,0.000234,2]
[408792015,1774277449727,-250.0,0.000234,2]
[408792017,1774277449736,-250.0,0.000234,2]
[408792019,1774277449746,-241.9,0.000234,2]
[408792021,1774277449757,-2487.15318209,0.00023425,2]
[408792023,1774277449768,-3818.2029698,0.000235,2]
[408792025,1774277449779,-1000.0,0.00023561,2]
[408792027,1774277449789,-500.0,0.00023561,4]
[408792029,1774277449799,-709.25,0.00023561,4]
[408792031,1774277449809,-500.0,0.00023561,4]
[408792033,1774277449819,-1000.0,0.00023561,2]
[408792035,1774277449828,-1000.0,0.00023791,2]
[408792037,1774277449838,-1000.0,0.00023791,2]
[408792039,1774277449848,-1000.0,0.00023791,2]
[408792041,1774277449857,-1000.0,0.00023791,2]
[408792043,1774277449868,-1000.0,0.00023791,2]
[408792045,1774277449879,-1000.0,0.00023791,2]
[408792047,1774277449889,-1000.0,0.00023829,2]
[408792049,1774277449899,-151.0,0.0002383,2]
[408792051,1774277449908,-1000.0,0.00023835,2]
[408792053,1774277449918,-500.0,0.00023835,4]
[408792055,1774277449928,-709.25,0.00023835,4]
[408792057,1774277449937,-500.0,0.00023835,4]
[408792059,1774277449947,-1000.0,0.00023835,2]
[408792061,1774277449956,-600.0,0.00023852,2]
[408792063,1774277449966,-1000.0,0.00023852,2]
[408792065,1774277449976,-1000.0,0.00023852,2]
[408792067,1774277449986,-963.8,0.000239,2]
[408792069,1774277449996,-1000.0,0.00023921,2]
[408792071,1774277450008,-1000.0,0.00023921,2]
[408792073,1774277450017,-1000.0,0.00023921,2]
[408792075,1774277450027,-150.0,0.00023929,2]
[408792077,1774277450036,-2579.17784983,0.00023973,2]
[408792079,1774277450046,-184.0,0.00024,2]
[408792080,1774277450055,-196.0902126,0.00024046,2]
[408792082,1774277450065,-172.537477,0.00024109,2]
[408792084,1774277450076,-334.411454,0.00024109,2]
[408792086,1774277450086,-172.537477,0.00024109,2]
[408792088,1774277450096,-334.411454,0.00024109,2]
[408792090,1774277450106,-172.537477,0.00024109,2]
[408792092,1774277450116,-334.411454,0.00024109,2]
[408792094,1774277450126,-1000.0,0.00024109,2]
[408792096,1774277450136,-172.537477,0.00024109,2]
[408792098,1774277450145,-334.411454,0.00024109,2]
[408792100,1774277450154,-500.0,0.00024109,4]
[408792102,1774277450164,-709.25,0.00024109,4]
[408792104,1774277450174,-500.0,0.00024109,4]
[408792106,1774277450184,-1000.0,0.00024109,2]
[408792108,1774277450194,-151.0,0.00024318,2]
[408792110,1774277450204,-1574.48713952,0.00024339,2]
[408792112,1774277450214,-1500.0,0.00024339,2]
[408792114,1774277450223,-991.0820289,0.00024339,2]
[408792116,1774277450234,-1500.0,0.00024339,2]
[408792118,1774277450244,-1001.26828411,0.00024339,2]
[408792120,1774277450254,-1500.0,0.00024339,2]
[408792122,1774277450263,-1001.27138782,0.00024377,2]
[408792124,1774277450273,-1000.0,0.00024383,2]
[408792126,1774277450282,-500.0,0.00024383,4]
[408792128,1774277450292,-151.0,0.00024383,2]
[408792130,1774277450301,-709.25,0.00024383,4]
[408792132,1774277450311,-500.0,0.00024383,4]
[408792134,1774277450321,-960.021643,0.00024383,2]
[408792136,1774277450331,-960.021643,0.00024383,2]
[408792138,1774277450341,-960.021643,0.00024383,2]
[408792139,1774277450350,-960.021643,0.00024383,2]
[408792141,1774277450360,-196.548611,0.00024383,2]
[408792143,1774277450369,-196.548611,0.00024383,2]
[408792145,1774277450379,-196.548611,0.00024383,2]
[408792147,1774277450388,-196.548611,0.00024383,2]
[408792149,1774277450398,-1000.0,0.00024383,2]
[408792151,1774277450408,-900.0,0.000244,2]
[408792153,1774277450418,-1500.0,0.000244,2]
[408792155,1774277450428,-1001.3318,0.000244,2]
[408792158,1774277450438,-1500.0,0.00024468,2]
[408792159,1774277450448,-1500.0,0.00024468,2]
[408792161,1774277450457,-1500.0,0.00024468,2]
[408792164,1774277450467,-2674.60743027,0.00024521,2]
[408792165,1774277450476,-431.80075059,0.0002455,2]
[408792168,1774277450487,-788.0,0.000246,2]
[408792170,1774277450496,-1577.63563559,0.0002465,2]
[408792171,1774277450508,-517.6198807,0.0002465,2]
[408792173,1774277450521,-1000.0,0.00024657,2]
[408792176,1774277450531,-500.0,0.00024657,4]
[408792177,1774277450541,-709.25,0.00024657,4]
[408792179,1774277450552,-500.0,0.00024657,4]
[408792181,1774277450562,-151.0,0.00024657,2]
[408792183,1774277450572,-151.0,0.00024657,2]
[408792185,1774277450582,-151.0,0.00024657,2]
[408792187,1774277450592,-163.225245,0.00024657,2]
[408792189,1774277450602,-151.0,0.00024657,2]
[408792191,1774277450612,-1000.0,0.00024657,2]
[408792193,1774277450622,-160.0,0.00024658,2]
[408792195,1774277450632,-160.0,0.00024658,2]
[408792197,1774277450642,-160.0,0.00024658,2]
[408792198,1774277450651,-160.0,0.00024658,2]
[408792200,1774277450660,-160.0,0.00024658,2]
[408792201,1774277450669,-208.23236222,0.00024658,2]
[408792203,1774277450679,-200.0,0.00024658,2]
[408792205,1774277450689,-380.0,0.00024658,2]
[408792207,1774277450699,-151.0,0.00024658,2]
[408792209,1774277450709,-151.0,0.00024658,2]
[408792211,1774277450718,-966.324788,0.00024658,2]
[408792213,1774277450727,-966.324788,0.00024658,2]
[408792215,1774277450737,-966.324788,0.00024658,2]
[408792217,1774277450746,-288.827087,0.00024658,2]
[408792219,1774277450757,-966.324788,0.00024658,2]
[408792221,1774277450767,-500.0,0.00024658,2]
[408792223,1774277450777,-500.0,0.00024658,2]
[408792225,1774277450788,-500.0,0.00024658,2]
[408792227,1774277450798,-500.0,0.00024658,2]
[408792229,1774277450808,-500.0,0.00024658,2]
[408792231,1774277450818,-500.0,0.00024658,2]
[408792233,1774277450828,-864.0,0.00024683,10]
[408792235,1774277450838,-254.0,0.0002473,3]
[408792237,1774277450847,-201.50183,0.00024765,2]
[408792239,1774277450858,-201.50183,0.00024765,2]
[408792241,1774277450867,-201.50183,0.00024765,2]
[408792243,1774277450878,-201.50183,0.00024765,2]
[408792245,1774277450889,-611.693164,0.00024765,2]
[408792247,1774277450899,-611.693164,0.00024765,2]
[408792249,1774277450909,-611.693164,0.00024765,2]
[408792251,1774277450919,-611.693164,0.00024765,2]
[408792253,1774277450928,-194.538464,0.00024765,2]
[408792255,1774277450938,-194.538464,0.00024765,2]
[408792257,1774277450948,-194.538464,0.00024765,2]
[408792259,1774277450958,-194.538464,0.00024765,2]
[408792261,1774277450967,-151.0,0.00024765,2]
[408792263,1774277450977,-285.270896,0.00024765,2]
[408792265,1774277450988,-367.505149,0.00024765,2]
[408792266,1774277450998,-367.505149,0.00024765,2]
[408792268,1774277451009,-367.505149,0.00024765,2]
[408792270,1774277451019,-367.505149,0.00024765,2]
[408792272,1774277451029,-498.1826,0.00024765,2]
[408792274,1774277451039,-498.1826,0.00024765,2]
[408792276,1774277451050,-498.1826,0.00024765,2]
[408792278,1774277451060,-498.1826,0.00024765,2]
[408792280,1774277451070,-2856.208797,0.00024765,2]
[408792282,1774277451079,-2856.208797,0.00024765,2]
[408792284,1774277451089,-2856.208797,0.00024765,2]
[408792286,1774277451099,-2856.208797,0.00024765,2]
[408792288,1774277451110,-151.0,0.00024805,2]
[408792290,1774277451119,-2000.0,0.00024887,2]
[408792292,1774277451129,-2000.0,0.00024887,2]
[408792294,1774277451139,-2000.0,0.00024887,2]
[408792296,1774277451149,-3400.82196704,0.00024889,2]
[408792298,1774277451159,-963.8,0.000249,2]
[408792300,1774277451169,-209.3695732,0.000249,2]
[408792302,1774277451179,-1000.0,0.00024931,2]
[408792304,1774277451190,-500.0,0.00024931,4]
[408792306,1774277451199,-709.25,0.00024931,4]
[408792308,1774277451209,-500.0,0.00024931,4]
[408792310,1774277451219,-1000.0,0.00024931,2]
[408792312,1774277451229,-1200.0,0.00024948,2]
[408792314,1774277451240,-2000.0,0.00024948,2]
[408792316,1774277451250,-150.0,0.00024973,2]
[408792318,1774277451260,-454.7984117,0.00024998,2]
[408792320,1774277451271,-300.0,0.00025,15]
[408792322,1774277451280,-650000.0,0.00025,4]
[408792323,1774277451290,-248.39131665,0.00025,2]
[408792325,1774277451300,-2693.75240907,0.00025,2]
[408792327,1774277451309,-500.0,0.00025,2]
[408792329,1774277451320,-150.0,0.00025,2]
[408792331,1774277451330,-151.0,0.00025,2]
[408792333,1774277451340,-151.0,0.00025,2]
[408792335,1774277451349,-151.0,0.00025,2]
[408792337,1774277451359,-151.0,0.00025,2]
[408792338,1774277451368,-151.0,0.00025,2]
[408792340,1774277451378,-151.0,0.00025,2]
[408792342,1774277451388,-2677.776263,0.00025,2]
[408792344,1774277451399,-2677.776263,0.00025,2]
[408792346,1774277451409,-2677.776263,0.00025,2]
[408792348,1774277451419,-2677.776263,0.00025,2]
[408792350,1774277451428,-151.0,0.00025,2]
[408792352,1774277451438,-222.6804,0.00025,2]
[408792354,1774277451449,-2677.776263,0.00025,2]
[408792356,1774277451459,-2677.776263,0.00025,2]
[408792358,1774277451469,-2677.776263,0.00025,2]
[408792360,1774277451479,-2677.776263,0.00025,2]
[408792362,1774277451489,-194.330576,0.00025,2]
[408792364,1774277451499,-194.330576,0.00025,2]
[408792366,1774277451513,-194.330576,0.00025,2]
[408792368,1774277451530,-194.330576,0.00025,2]
[408792370,1774277451539,-194.330576,0.00025,2]
[408792372,1774277451550,-194.330576,0.00025,2]
[408792374,1774277451562,-194.330576,0.00025,2]
[408792376,1774277451583,-194.330576,0.00025,2]